bitfinex/quotes_ETHUSD_20250411
["timestamp","ask_amount","ask_price","bid_price","bid_amount"]
[1744377300481,6.4462,1551.3,1551.2,0.8293]
[1744377301176,6.44466,1551.7,1551.3,6.446]
[1744377301353,6.44466,1551.7,1551.5,3.6833113]
[1744377301809,6.44454,1551.7,1551.5,3.6833113]
[1744377301968,12.88929,1551.7,1551.5,3.6833113]
[1744377302387,6.44454,1551.7,1551.5,3.6833113]
[1744377302866,12.88922,1551.7,1551.5,3.6833113]
[1744377303059,12.88922,1551.7,1551.3,12.89219]
[1744377303060,6.44562,1551.5,1551.3,3.6833113]
[1744377303260,6.44591,1551.4,1551.2,4.5126113]
[1744377303757,6.44509,1551.6,1551.2,4.5126113]
[1744377304012,6.44555,1551.5,1551.3,3.6833113]
[1744377304196,6.4446,1551.7,1551.3,10.1294813]
[1744377304495,6.44567,1551.5,1551.3,3.6833113]
[1744377304698,7.090357,1551.4,1551.3,3.6833113]
[1744377304874,6.44626,1551.3,1551.0,3.6833113]
[1744377305193,12.8934,1551.2,1551.0,3.6833113]
[1744377305410,6.44663,1551.2,1551.0,3.6833113]
[1744377305612,7.24797,1551.3,1551.0,3.6833113]
[1744377305613,6.44632,1551.3,1551.0,3.6833113]
[1744377305782,7.27754,1551.5,1551.2,3.6833113]
[1744377305984,7.27754,1551.5,1551.2,4.4985113]
[1744377306180,6.44507,1551.6,1551.2,4.4985113]
[1744377306181,6.44508,1551.6,1551.2,10.9450013]
[1744377306379,14.99464,1551.7,1551.4,3.6833113]
[1744377306620,6.44418,1551.8,1551.4,10.1288513]
[1744377306819,6.44454,1551.7,1551.6,3.6833113]
[1744377306985,6.44508,1551.6,1551.4,3.6833113]
[1744377307177,13.65682,1551.6,1551.4,3.6833113]
[1744377307613,7.21168,1551.6,1551.2,0.8152]
[1744377307799,12.88778,1551.9,1551.5,0.7779]
[1744377307999,6.4447,1551.7,1551.4,3.6833113]
[1744377308212,6.44498,1551.6,1551.4,3.6833113]
[1744377308723,12.88937,1551.7,1551.4,3.6833113]
[1744377308881,6.44464,1551.7,1551.4,3.6833113]
[1744377309081,12.88938,1551.7,1551.4,3.6833113]
[1744377309318,6.44499,1551.6,1551.3,5.13044891]
[1744377309684,12.89025,1551.6,1551.3,5.13044891]
[1744377309927,6.44499,1551.6,1551.3,5.13044891]
[1744377310128,6.44466,1551.7,1551.3,11.57651891]
[1744377310283,12.88935,1551.7,1551.3,11.57651891]
[1744377310489,12.88936,1551.7,1551.3,12.7341608]
[1744377311123,6.44466,1551.7,1551.3,12.7341608]
[1744377311297,6.44466,1551.7,1551.3,19.1802508]
[1744377311502,6.44466,1551.7,1551.3,19.1802408]
[1744377311794,0.7947,1551.9,1551.5,4.35254891]
[1744377312005,6.44511,1551.6,1551.3,6.2881008]
[1744377312600,6.44472,1551.7,1551.3,12.7342708]
[1744377312804,6.44472,1551.7,1551.3,19.1803508]
[1744377313132,6.44471,1551.7,1551.3,19.1802408]
[1744377313431,12.88942,1551.7,1551.3,12.7341608]
[1744377313732,6.44469,1551.7,1551.4,1.27341608]
[1744377313937,6.44469,1551.7,1551.3,6.2881008]
[1744377314234,6.44496,1551.6,1551.3,6.2881008]
[1744377314840,6.44454,1551.7,1551.3,0.7779]
[1744377315021,6.44579,1551.4,1551.1,5.14624891]
[1744377315228,6.44579,1551.4,1551.1,11.59322891]
[1744377316136,6.44467,1551.7,1551.3,4.35254891]
[1744377316295,6.4452,1551.6,1551.3,4.35254891]
[1744377316497,12.89044,1551.6,1551.3,4.35254891]
[1744377316727,6.44557,1551.5,1551.1,13.68757]
[1744377316899,6.44522,1551.6,1551.2,10.79915891]
[1744377317100,12.89049,1551.6,1551.2,10.79915891]
[1744377317638,6.44522,1551.6,1551.2,17.24565891]
[1744377317813,6.44455,1551.7,1551.2,17.24565891]
[1744377317814,6.44455,1551.7,1551.3,7.23515]
[1744377318017,6.44455,1551.7,1551.3,14.83999989]
[1744377319141,14.16131,1552.0,1551.6,6.44492]
[1744377319142,7.718,1552.0,1551.6,6.44492]
[1744377319313,20.60503,1552.0,1551.6,10.79746891]
[1744377319514,6.44342,1552.0,1551.6,17.24228891]
[1744377319719,6.44333,1552.0,1551.6,19.0463378]
[1744377319901,6.44339,1552.0,1551.6,12.6011978]
[1744377320426,6.44339,1552.0,1551.6,19.0460178]
[1744377320829,6.44339,1552.0,1551.6,12.6011978]
[1744377321199,15.63020575,1552.3,1551.6,12.6011978]
[1744377321200,6.44255,1552.2,1551.7,0.8167]
[1744377321401,12.63026575,1552.3,1551.9,6.44353]
[1744377321600,12.63026575,1552.3,1552.0,0.8306]
[1744377322198,6.18811575,1552.3,1552.0,12.11290829]
[1744377322522,6.18811575,1552.3,1552.0,12.11302829]
[1744377323041,6.18811575,1552.3,1552.0,12.11292829]
[1744377323214,6.18811575,1552.3,1552.0,19.76738112]
[1744377323414,6.18811575,1552.3,1552.0,13.32419112]
[1744377323724,6.18811575,1552.3,1552.1,6.44285]
[1744377323929,12.62895575,1552.6,1552.0,6.88103112]
[1744377324232,6.44122,1552.5,1552.2,4.35254891]
[1744377324428,6.18811575,1552.6,1552.4,4.35254891]
[1744377324613,6.18811575,1552.6,1552.4,10.79398891]
[1744377324811,6.18811575,1552.6,1552.4,4.35254891]
[1744377325030,12.62920575,1552.6,1552.3,0.7797]
[1744377325531,6.18811575,1552.6,1552.5,6.44122]
[1744377325905,6.18811575,1552.6,1552.5,7.24762]
[1744377326101,6.18811575,1552.6,1552.5,0.8064]
[1744377326350,12.62903575,1552.6,1552.3,0.8064]
[1744377326638,12.62903575,1552.6,1552.3,7.24841]
[1744377326639,6.18811575,1552.6,1552.3,7.24841]
[1744377326946,6.18811575,1552.6,1552.3,9.16460589]
[1744377327242,6.18811575,1552.6,1552.3,15.60653589]
[1744377327442,6.18811575,1552.6,1552.3,9.16451589]
[1744377327649,12.88107,1552.7,1552.3,9.16451589]
[1744377327855,7.20585,1552.8,1552.4,6.44152]
[1744377328162,13.64623,1552.8,1552.4,8.30212459]
[1744377328543,6.44047,1552.7,1552.4,1.86060459]
[1744377328747,6.4412,1552.6,1552.3,0.8064]
[1744377329080,12.88218,1552.6,1552.3,0.8064]
[1744377329220,6.44143,1552.5,1552.3,0.8064]
[1744377329555,6.44104,1552.6,1552.3,0.8064]
[1744377329959,12.88202,1552.6,1552.3,0.8064]
[1744377330159,6.44098,1552.6,1552.3,0.8064]
[1744377330753,12.88105,1552.7,1552.3,7.24844]
[1744377330953,12.88105,1552.7,1552.3,9.05277389]
[1744377331254,6.44082,1552.6,1552.3,7.24844]
[1744377331427,6.44046,1552.7,1552.3,7.2484]
[1744377331627,6.44013,1552.8,1552.4,6.44141]
[1744377331839,6.44013,1552.8,1552.4,17.23549891]
[1744377332037,12.88025,1552.8,1552.4,12.5981488]
[1744377332562,6.44057,1552.7,1552.4,6.1567388]
[1744377332770,6.44057,1552.7,1552.4,4.35254891]
[1744377332977,14.77397,1553.0,1552.3,0.8064]
[1744377332978,6.44122,1552.5,1552.3,0.8064]
[1744377333434,6.44089,1552.6,1552.3,0.8064]
[1744377333627,13.64579,1552.7,1552.3,0.8064]
[1744377333852,8.569669,1552.7,1552.3,0.8064]
[1744377334040,6.44102,1552.6,1552.3,0.8064]
[1744377335154,6.44102,1552.6,1552.3,7.24839]
[1744377335359,12.88201,1552.6,1552.3,0.8064]
[1744377335947,12.88197,1552.6,1552.3,0.8064]
[1744377336335,6.44125,1552.5,1552.3,0.8064]
[1744377336655,6.44098,1552.6,1552.3,0.8064]
[1744377336850,13.602738,1552.6,1552.3,0.8064]
[1744377337036,6.44098,1552.6,1552.3,0.8064]
[1744377337240,6.44098,1552.6,1552.3,4.48569748]
[1744377337565,6.44098,1552.6,1552.3,10.9921292]
[1744377337762,12.88106,1552.7,1552.3,10.9921292]
[1744377337967,6.4405,1552.7,1552.3,17.36964748]
[1744377338165,6.4405,1552.7,1552.3,10.92762748]
[1744377338345,10.19252,1552.9,1552.3,10.92762748]
[1744377338346,6.43997,1552.8,1552.3,4.48569748]
[1744377338666,12.88199,1552.6,1552.2,6.44235]
[1744377338969,6.44123,1552.5,1552.2,10.12164748]
[1744377339372,13.6721,1552.6,1552.2,16.56399748]
[1744377339566,12.8822,1552.6,1552.2,18.29975723]
[1744377339738,6.44099,1552.6,1552.2,18.29975723]
[1744377339938,6.44099,1552.6,1552.3,0.7728]
[1744377341041,6.4405,1552.7,1552.3,0.7728]
[1744377341242,6.44087,1552.6,1552.3,0.7728]
[1744377341567,6.4405,1552.7,1552.3,9.12198972]
[1744377341771,13.67501,1552.8,1552.4,3.67929748]
[1744377342066,6.44012,1552.8,1552.4,10.12089748]
[1744377342267,6.44012,1552.8,1552.4,10.12080748]
[1744377342667,6.43969,1552.9,1552.6,3.67929748]
[1744377342883,6.44019,1552.8,1552.4,10.12081748]
[1744377343169,6.44041,1552.7,1552.4,3.67929748]
[1744377344576,12.88093,1552.7,1552.4,3.67929748]
[1744377346863,6.44092,1552.6,1552.4,3.67929748]
[1744377347263,6.44048,1552.7,1552.4,3.67929748]
[1744377347752,12.88102,1552.7,1552.4,3.67929748]
[1744377348157,6.44085,1552.6,1552.4,3.67929748]
[1744377348482,6.44085,1552.6,1552.1,0.7968]
[1744377348483,12.88308,1552.5,1552.1,0.7968]
[1744377348645,8.541393,1552.6,1552.1,0.7968]
[1744377348979,12.88379,1552.4,1552.1,0.7968]
[1744377349148,6.44182,1552.4,1552.1,4.47609748]
[1744377349687,6.44136,1552.5,1552.1,5.56803223]
[1744377349857,6.44136,1552.5,1552.1,10.91885748]
[1744377350787,6.44184,1552.4,1552.1,4.47609748]
[1744377351891,12.88271,1552.5,1552.1,4.54051586]
[1744377352090,12.88271,1552.5,1552.1,10.98337586]
[1744377352789,0.8124,1552.6,1552.3,3.67929748]
[1744377352790,6.44092,1552.6,1552.3,3.67929748]
[1744377353874,12.88186,1552.6,1552.3,3.67929748]
[1744377354801,6.44092,1552.6,1552.3,3.67929748]
[1744377356500,12.88199,1552.6,1552.3,3.67929748]
[1744377357362,6.44092,1552.6,1552.3,3.67929748]
[1744377357600,6.44092,1552.6,1552.4,0.8198]
[1744377357765,10.161889,1552.9,1552.4,0.8198]
[1744377357766,6.43996,1552.9,1552.5,3.67929748]
[1744377357975,6.4405,1552.7,1552.4,0.8198]
[1744377359085,6.4409,1552.6,1552.4,0.8198]
[1744377359788,12.88205,1552.6,1552.4,0.8198]
[1744377360311,6.44164,1552.4,1552.2,0.7905]
[1744377360603,6.443,1552.1,1551.8,0.7905]
[1744377360767,7.22497,1552.2,1551.8,0.7905]
[1744377360967,6.44393,1551.9,1551.6,0.00425619]
[1744377361169,6.44429,1551.8,1551.6,0.00425619]
[1744377361477,6.44454,1551.7,1551.6,0.00425619]
[1744377361793,12.88883,1551.8,1551.6,0.00425619]
[1744377362380,0.8237,1551.9,1551.6,0.00425619]
[1744377362588,0.8127,1552.1,1551.6,0.37261156]
[1744377362784,6.44389,1551.9,1551.6,0.00425619]
[1744377363610,12.88789,1551.9,1551.6,0.00425619]
[1744377363907,6.44387,1551.9,1551.6,0.00425619]
[1744377364274,12.88789,1551.9,1551.6,0.00425619]
[1744377364705,6.44414,1551.8,1551.6,0.00425619]
[1744377364892,6.44454,1551.7,1551.6,0.00425619]
[1744377365640,7.24524,1551.7,1551.6,0.00425619]
[1744377367407,9.44454,1551.7,1551.6,0.00425619]
[1744377367635,10.23074,1551.7,1551.6,0.00425619]
[1744377367941,10.71271408,1551.7,1551.6,6.19e-06]
[1744377368146,68.39901007,1551.7,1551.6,6.19e-06]
[1744377368507,18.16301007,1551.7,1551.6,6.19e-06]
[1744377368703,13.45173851,1551.7,1551.6,6.19e-06]
[1744377368940,7.23074,1551.7,1551.6,6.19e-06]
[1744377369168,6.44454,1551.7,1551.6,6.19e-06]
[1744377369436,13.76414,1551.8,1551.6,6.19e-06]
[1744377369652,7.32,1551.8,1551.6,6.19e-06]
[1744377369849,0.8001,1551.9,1551.6,6.19e-06]
[1744377370047,6.92026235,1552.0,1551.7,0.8184]
[1744377370338,6.44344,1552.0,1551.7,0.8184]
[1744377370510,12.8871,1552.0,1551.7,0.8184]
[1744377370845,1.28871,1552.0,1551.6,6.19e-06]
[1744377371019,6.44429,1551.8,1551.6,6.19e-06]
[1744377371219,6.44371,1551.9,1551.6,6.19e-06]
[1744377371714,6.44454,1551.7,1551.6,6.19e-06]
[1744377372035,6.44439,1551.8,1551.6,6.19e-06]
[1744377372036,12.88869,1551.8,1551.6,6.19e-06]
[1744377372236,20.20869,1551.8,1551.6,6.19e-06]
[1744377372453,21.578249,1551.8,1551.6,6.19e-06]
[1744377372749,21.578249,1551.8,1551.3,7.22408]
[1744377372960,6.44456,1551.7,1551.3,7.22408]
[1744377373326,12.88935,1551.7,1551.3,0.7781]
[1744377373725,6.44456,1551.7,1551.3,0.7781]
[1744377374024,6.44456,1551.7,1551.3,7.22426]
[1744377374435,6.44456,1551.7,1551.3,7.288714]
[1744377374635,6.44456,1551.7,1551.3,15.4082854]
[1744377374952,6.44456,1551.7,1551.3,2.4516214]
[1744377375155,6.44496,1551.6,1551.3,0.7781]
[1744377375869,6.44496,1551.6,1551.1,6.92340362]
[1744377375870,0.795,1551.6,1550.7,0.7999]
[1744377376172,0.795,1551.6,1550.8,6.44802]
[1744377376173,12.89285,1551.3,1550.8,6.44802]
[1744377376367,14.182135,1551.3,1550.8,12.89618]
[1744377376536,14.182085,1551.3,1550.8,12.89618]
[1744377377032,14.182085,1551.3,1550.7,10.73916935]
[1744377377033,6.44662,1551.2,1550.7,10.73916935]
[1744377377345,6.44662,1551.2,1550.8,6.44812]
[1744377377529,7.735565,1551.3,1550.8,6.44812]
[1744377377865,20.21184,1551.4,1551.0,6.44731]
[1744377378063,6.44633,1551.3,1550.9,7.22585]
[1744377378425,20.21185,1551.4,1550.9,13.73807115]
[1744377378624,20.21184,1551.4,1550.9,13.6736]
[1744377378853,13.76588,1551.4,1551.0,6.4474]
[1744377379168,13.76588,1551.4,1550.9,0.7781]
[1744377379169,13.76614,1551.4,1550.9,6.44774]
[1744377379323,20.21228,1551.4,1551.0,0.764]
[1744377379524,6.44666,1551.2,1551.0,0.764]
[1744377380025,6.44666,1551.2,1550.8,0.8095]
[1744377380026,6.44703,1551.1,1550.8,0.8095]
[1744377380476,0.7536,1551.2,1550.8,0.8095]
[1744377380685,7.20034,1551.2,1550.8,7.25767]
[1744377380978,6.44717,1551.1,1550.8,0.8095]
[1744377381178,12.89527,1551.0,1550.6,7.6348384]
[1744377381383,6.44759,1551.0,1550.6,14.14832211]
[1744377381543,6.44759,1551.0,1550.6,7.6347984]
[1744377381745,6.44845,1550.8,1550.6,0.3925984]
[1744377382283,6.4487,1550.7,1550.6,0.3925984]
[1744377383953,7.2181,1550.7,1550.6,0.3925984]
[1744377384342,7.2292,1550.7,1550.6,0.3925984]
[1744377384554,10.2292,1550.7,1550.6,0.3925984]
[1744377384752,13.091814,1550.7,1550.6,8.4e-06]
[1744377385296,12.541814,1550.7,1550.6,8.4e-06]
[1744377385454,19.863814,1550.7,1550.6,8.4e-06]
[1744377386978,16.083314,1550.7,1550.6,8.4e-06]
[1744377387366,6.4487,1550.7,1550.6,8.4e-06]
[1744377387583,13.77096,1550.9,1550.6,8.4e-06]
[1744377387883,7.323,1550.9,1550.7,0.789]
[1744377388087,12.89438,1551.1,1550.7,7.23762]
[1744377388387,6.44749,1551.0,1550.7,0.789]
[1744377388558,12.89511,1551.0,1550.7,0.789]
[1744377388760,13.77103,1551.1,1550.7,0.789]
[1744377388981,6.44763,1551.0,1550.7,0.789]
[1744377389282,12.89532,1551.0,1550.7,0.789]
[1744377389580,6.44792,1550.9,1550.6,8.4e-06]
[1744377389878,6.44747,1551.0,1550.6,6.4490584]
[1744377390179,12.89511,1551.0,1550.6,6.4489884]
[1744377390400,6.44809,1550.9,1550.6,8.4e-06]
[1744377390761,6.4487,1550.7,1550.6,8.4e-06]
[1744377391095,7.738419,1550.7,1550.6,8.4e-06]
[1744377391250,11.495119,1550.7,1550.6,8.4e-06]
[1744377391585,12.045119,1550.7,1550.6,8.4e-06]
[1744377391790,11.495119,1550.7,1550.6,8.4e-06]
[1744377393285,12.045119,1550.7,1550.6,8.4e-06]
[1744377393487,6.45164,1550.0,1549.7,6.45272]
[1744377393788,6.44997,1550.4,1550.0,6.4512]
[1744377394082,12.89585586,1550.4,1550.0,10.80321416]
[1744377394486,6.45058,1550.3,1550.0,4.35201416]
[1744377394686,6.45058,1550.3,1549.9,12.90381]
[1744377395063,20.22277,1550.6,1550.2,6.45061]
[1744377395393,6.44964,1550.5,1550.1,12.90238]
[1744377395754,12.89937,1550.5,1550.1,6.45119]
[1744377395950,6.44964,1550.5,1550.1,6.45107]
[1744377396150,6.44964,1550.5,1550.1,12.90213]
[1744377396490,12.89939,1550.5,1550.2,0.753]
[1744377396669,6.44964,1550.5,1550.2,0.753]
[1744377396870,6.44924,1550.6,1550.2,15.08415352]
[1744377397073,6.44882,1550.7,1550.3,7.20948]
[1744377397277,12.89877,1550.6,1550.3,0.7594]
[1744377397480,12.89854,1550.6,1550.3,0.7594]
[1744377397798,3.0,1550.8,1550.0,4.35201416]
[1744377397950,12.8979,1550.7,1550.3,6.45016]
[1744377398151,12.8979,1550.7,1550.2,11.62956416]
[1744377398152,6.45009,1550.4,1550.2,0.8269]
[1744377398456,6.45009,1550.4,1550.0,4.35201416]
[1744377398457,6.45106,1550.2,1550.0,0.7551]
[1744377399108,6.45161,1550.1,1549.8,0.7707]
[1744377399254,6.45143,1550.1,1549.8,0.7707]
[1744377399455,6.45143,1550.1,1549.9,4.35201416]
[1744377399656,12.90284,1550.1,1549.8,0.7707]
[1744377399864,12.90279,1550.1,1549.9,0.12033348]
[1744377400066,12.90279,1550.1,1549.8,0.7707]
[1744377400299,13.77424,1550.1,1549.7,6.93088876]
[1744377400496,6.45078,1550.2,1549.9,0.12033348]
[1744377400797,6.45011,1550.4,1550.0,13.70272]
[1744377400958,12.90047,1550.4,1550.0,7.73363638]
[1744377401500,6.4508,1550.2,1549.8,6.45214]
[1744377401699,6.45048,1550.3,1550.0,6.45149]
[1744377401905,0.8076,1550.7,1550.1,5.17292131]
[1744377402080,0.8076,1550.7,1550.1,11.55945416]
[1744377402081,6.44969,1550.5,1550.1,11.55945416]
[1744377402284,6.44927,1550.6,1550.2,6.45062]
[1744377402480,12.89878,1550.6,1550.2,6.45062]
[1744377402686,12.89878,1550.6,1550.3,6.45034]
[1744377402687,6.44927,1550.6,1550.3,6.45034]
[1744377402883,13.77187,1550.7,1550.3,6.45034]
[1744377403108,20.22078,1550.7,1550.4,0.8069]
[1744377403313,20.22074,1550.7,1550.4,0.8069]
[1744377403513,13.77177,1550.7,1550.4,1.29988453]
[1744377403729,6.44916,1550.6,1550.4,1.29988453]
[1744377404246,12.89861,1550.6,1550.4,1.29988453]
[1744377404427,6.44953,1550.5,1550.2,0.7885]
[1744377404631,6.44953,1550.5,1550.2,7.23922]
[1744377404930,12.89844,1550.6,1550.2,7.38346398]
[1744377405102,12.89849,1550.6,1550.2,9.06691938]
[1744377405518,6.44918,1550.6,1550.2,9.06691938]
[1744377405904,6.45004,1550.4,1550.2,0.93274398]
[1744377406891,12.90019,1550.4,1550.2,0.93274398]
[1744377407216,12.90019,1550.4,1550.2,0.14424398]
[1744377407217,6.45036,1550.3,1550.2,0.14424398]
[1744377407619,6.45112,1550.2,1550.0,1.29506836]
[1744377407929,13.77347,1550.3,1550.0,1.29506836]
[1744377408140,6.45101,1550.2,1550.0,0.48556836]
[1744377408688,6.45078,1550.2,1549.8,0.7774]
[1744377408894,6.45078,1550.2,1549.1,0.82692002]
[1744377408895,6.45494,1549.2,1549.1,0.50251161]
[1744377409419,14.59125,1549.4,1549.1,0.50251161]
[1744377409597,0.8141,1549.7,1549.1,0.97992413]
[1744377409793,0.8141,1549.9,1549.2,7.29099274]
[1744377410027,6.45432,1549.4,1549.1,0.50251161]
[1744377410211,8.1381,1549.5,1549.1,0.50251161]
[1744377410414,6.4544,1549.4,1549.1,0.50251161]
[1744377410928,6.45455,1549.3,1549.1,0.50251161]
[1744377411233,7.27654,1549.2,1549.1,0.50251161]
[1744377411538,6.45494,1549.2,1549.1,0.50251161]
[1744377411761,7.745889,1549.2,1549.1,0.50251161]
[1744377412126,6.45494,1549.2,1549.1,0.50251161]
[1744377412469,6.45494,1549.2,1549.0,1.61e-06]
[1744377412470,7.25336,1549.1,1549.0,1.61e-06]
[1744377412745,6.45446,1549.4,1549.0,1.61e-06]
[1744377412946,6.45456,1549.3,1549.0,1.61e-06]
[1744377413257,1.290872,1549.3,1549.0,1.61e-06]
[1744377413446,6.45411,1549.4,1549.0,1.61e-06]
[1744377413604,6.45411,1549.4,1549.0,6.45570161]
[1744377413806,6.45411,1549.4,1549.0,1.61e-06]
[1744377414047,0.8025,1549.5,1549.2,6.45476]
[1744377414347,6.45422,1549.4,1549.1,0.7575]
[1744377414549,0.645422,1549.3,1549.0,1.61e-06]
[1744377414851,6.45412,1549.4,1549.0,1.61e-06]
[1744377415142,12.90845,1549.4,1549.0,0.14521339]
[1744377415304,6.45376,1549.5,1549.0,0.14521339]
[1744377415519,6.45376,1549.5,1549.0,6.60073339]
[1744377415719,14.19846,1549.5,1549.0,7.34018673]
[1744377416115,6.45417,1549.4,1549.0,0.14521339]
[1744377416865,14.19842,1549.5,1549.0,6.60077339]
[1744377417068,6.45412,1549.4,1549.0,6.60077339]
[1744377417237,14.1984,1549.5,1549.0,6.60077339]
[1744377417561,1.29071,1549.5,1549.1,6.45534]
[1744377417763,7.74443,1549.5,1549.1,6.5999077]
[1744377417922,7.74443,1549.5,1549.1,0.1445677]
[1744377418121,7.228803,1549.4,1549.1,0.1445677]
[1744377418340,13.683263,1549.4,1549.1,0.1445677]
[1744377418638,0.774443,1549.4,1549.1,0.1445677]
[1744377418966,7.74456,1549.5,1549.1,0.1445677]
[1744377419299,12.90853,1549.4,1549.1,0.1445677]
[1744377419563,6.45423,1549.4,1549.1,0.1445677]
[1744377419869,6.45417,1549.4,1549.1,0.1445677]
[1744377420163,7.74444,1549.5,1549.1,0.1445677]
[1744377420472,0.7652,1549.7,1549.2,7.25562]
[1744377420473,13.6712,1549.7,1549.2,7.25562]
[1744377420761,12.906,1549.7,1549.3,6.45439]
[1744377420967,8.4378,1549.9,1549.2,7.99570877]
[1744377420968,6.45329,1549.6,1549.2,7.99570877]
[1744377421328,6.4529,1549.7,1549.3,6.45449]
[1744377421651,6.45161,1550.0,1549.6,0.7833]
[1744377421823,7.097331,1549.9,1549.6,0.7833]
[1744377422168,6.4517,1550.0,1549.6,7.23656]
[1744377422351,12.90353,1550.0,1549.6,7.23656]
[1744377422529,0.645078,1550.1,1549.8,6.45231]
[1744377422869,14.0859,1550.2,1549.8,6.45231]
[1744377422870,7.635,1550.2,1550.0,0.7914]
[1744377423033,6.45079,1550.2,1550.0,0.7914]
[1744377423233,6.45024,1550.4,1550.0,0.7914]
[1744377423433,7.095574,1550.3,1550.0,0.7914]
[1744377423634,6.4509,1550.2,1550.0,0.7914]
[1744377423828,6.45159,1550.1,1549.6,13.66371]
[1744377424047,6.45159,1550.1,1549.6,7.68760496]
[1744377424275,12.90362,1550.0,1549.6,7.68760496]
[1744377424466,12.90357,1550.0,1549.6,9.10172246]
[1744377424825,6.45125,1550.1,1549.7,6.45253]
[1744377425030,7.095624,1550.3,1549.9,7.28476]
[1744377425232,13.546384,1550.3,1549.9,7.28476]
[1744377425779,7.095624,1550.3,1549.9,13.73664]
[1744377426190,7.095624,1550.3,1549.9,8.658424]
[1744377426357,6.4506,1550.3,1549.9,15.110314]
[1744377426681,6.44961,1550.5,1550.1,12.90204]
[1744377426885,6.44913,1550.6,1550.2,6.45077]
[1744377427180,6.44957,1550.5,1550.1,6.45118]
[1744377427375,6.44957,1550.5,1550.1,12.90225]
[1744377427678,6.44957,1550.5,1550.1,14.70596642]
[1744377427880,12.89926,1550.5,1550.1,14.70596642]
[1744377428066,6.44957,1550.5,1550.1,14.70596642]
[1744377428444,12.89925,1550.5,1550.1,14.70596642]
[1744377428774,6.44957,1550.5,1550.1,14.70596642]
[1744377428979,7.73945,1550.5,1550.1,12.90214]
[1744377429551,14.18915,1550.5,1550.1,12.90214]
[1744377429757,14.18915,1550.5,1550.1,6.45107]
[1744377429965,6.45,1550.4,1550.1,6.45107]
[1744377430281,6.45043,1550.3,1550.0,13.68576]
[1744377430487,6.45078,1550.2,1550.0,0.7829]
[1744377431678,6.4504,1550.3,1550.0,7.2345]
[1744377431888,6.45008,1550.4,1550.0,0.7829]
[1744377432091,6.45008,1550.4,1550.1,6.45106]
[1744377432263,6.4504,1550.3,1550.0,7.23438]
[1744377432461,6.4504,1550.3,1550.0,8.603008]
[1744377432980,12.9004,1550.4,1550.0,15.054498]
[1744377433177,1.28988,1550.5,1550.0,7.23438]
[1744377433178,6.45055,1550.3,1550.0,7.23438]
[1744377433485,12.90032,1550.4,1550.1,6.45114]
[1744377433664,12.90032,1550.4,1550.0,13.68587]
[1744377434381,7.73956,1550.5,1550.1,6.45117]
[1744377434557,6.44968,1550.5,1550.3,0.7531]
[1744377434967,12.89854,1550.6,1550.3,0.7531]
[1744377435167,6.44958,1550.5,1550.3,0.7531]
[1744377435363,12.89928,1550.5,1550.3,0.7531]
[1744377435885,6.44994,1550.4,1550.3,0.7531]
[1744377436083,6.45064,1550.3,1550.1,0.7557]
[1744377436280,12.90141,1550.3,1550.1,0.7557]
[1744377436585,6.45078,1550.2,1550.1,0.7557]
[1744377438072,6.45178,1550.0,1549.9,0.8306]
[1744377438278,12.90379,1550.0,1549.7,3.8306]
[1744377438855,6.45207,1549.9,1549.7,0.8306]
[1744377439156,6.45308,1549.7,1549.5,0.8253]
[1744377439356,6.45327,1549.6,1549.5,0.8253]
[1744377439757,12.90635,1549.7,1549.5,0.8253]
[1744377439967,6.45308,1549.7,1549.5,0.8253]
[1744377440354,6.45221,1549.9,1549.5,1.55324]
[1744377440590,7.25101,1550.2,1549.5,5.07995416]
[1744377440789,13.70219,1550.2,1549.8,12.90446]
[1744377440990,6.45096,1550.2,1549.8,12.90445]
[1744377441191,7.148954,1550.6,1550.2,6.45078]
[1744377441391,6.44932,1550.6,1550.2,7.59543872]
[1744377441606,12.89861,1550.6,1550.3,0.7866]
[1744377441830,6.44926,1550.6,1550.3,0.7866]
[1744377442603,4.71850683,1550.7,1550.3,0.7866]
[1744377442800,4.71850683,1550.7,1550.6,6.44911]
[1744377442967,4.71850683,1550.7,1550.6,8.52185]
[1744377444269,4.71850683,1550.7,1550.6,12.07185]
[1744377445192,6.18811575,1551.1,1551.0,7.20055]
[1744377445392,6.18811575,1551.1,1550.8,0.7531]
[1744377445592,7.26268,1551.3,1550.8,7.20121]
[1744377445915,6.44628,1551.3,1550.9,13.615521]
[1744377446117,6.44579,1551.4,1551.0,6.44727]
[1744377446302,6.44579,1551.4,1551.1,6.44696]
[1744377446696,12.89099,1551.5,1551.1,6.44696]
[1744377447120,6.44582,1551.4,1551.1,6.44696]
[1744377447297,6.44582,1551.4,1551.1,7.736383]
[1744377447498,12.8918,1551.4,1551.1,7.736383]
[1744377447800,12.8918,1551.4,1551.1,1.289423]
[1744377447986,6.44582,1551.4,1551.1,1.289423]
[1744377448191,12.89102,1551.5,1551.2,0.8177]
[1744377448602,14.86337,1551.6,1551.0,6.44719]
[1744377448813,12.89201,1551.4,1551.0,6.44719]
[1744377449093,0.8164,1551.6,1551.1,0.8179]
[1744377449290,6.44617,1551.4,1551.1,0.8179]
[1744377449493,7.090787,1551.4,1551.1,0.8179]
[1744377449726,6.44633,1551.3,1551.1,0.8179]
[1744377449922,6.44662,1551.2,1550.9,1.515821]
[1744377450219,6.44662,1551.2,1550.9,0.7957]
[1744377450414,6.44626,1551.3,1550.9,7.24355]
[1744377450710,6.44626,1551.3,1550.9,13.69121]
[1744377451020,6.44626,1551.3,1550.9,7.24336]
[1744377451226,7.599,1551.4,1550.9,5.14771416]
[1744377451421,7.599,1551.4,1551.1,12.89378]
[1744377451721,7.599,1551.4,1551.1,6.44688]
[1744377451937,7.26143,1551.6,1551.2,6.44646]
[1744377452104,7.26143,1551.6,1551.2,7.19646]
[1744377452299,6.44503,1551.6,1551.2,13.64289]
[1744377452621,6.44503,1551.6,1551.2,7.19643]
[1744377452794,12.89025,1551.6,1551.2,7.19643]
[1744377453393,14.939075,1551.6,1551.2,7.19643]